[Event "European Women Blitz-ch 2024"]
[Site "Monaco"]
[Date "2025.01.10"]
[Round "4.6"]
[White "Matnadze Bujiashvili, Ann"]
[Black "Charkhalashvili, Inga"]
[Result "1-0"]
[Annotator "TA"]
[ECO "E07"]
[WhiteElo "2315"]
[BlackElo "2240"]
[PlyCount "59"]
[EventDate "2025.01.06"]
[EventType "swiss"]
[EventCountry "MNC"]
[SourceTitle "playchess.com"]
[Source "ChessBase"]
[SourceQuality "1"]
[TimeControl "180+2"]

{[%evp 15,59,-5,32,-18,-18,-1,8,9,28,38,87,84,102,86,110,83,129,127,260,73,191,173,204,209,190,200,275,225,208,213,521,511,509,504,679,599,618,607,670,670,672,679,666,657,741,741]} 1. d4 {[%emt 0:00:01]} Nf6 {[%emt 0:00:01]} 2. Nf3 {[%emt 0:00:01]} e6 {[%emt 0:00:01]} 3. c4 {[%emt 0:00:02]} d5 {[%emt 0:00:01]} 4. g3 {[%emt 0:00:01]} c6 {[%emt 0:00:03]} 5. Bg2 {[%emt 0:00:01]} Be7 {[%emt 0:00:03]} 6. O-O {[%emt 0:00:02]} O-O {[%emt 0:00:02]} 7. Nc3 {[%emt 0:00:01]} Nbd7 {[%emt 0:00:04]} 8. Qb3 {[%emt 0:00:08]} b6 {[%emt 0:00:11]} 9. Nd2 {[%emt 0:00:10]} ({White should play} 9. cxd5 $14 exd5 10. Rd1) 9... Ba6 {[%emt 0:00:19]} 10. Rd1 {[%emt 0:00:08][%cal Rc4d5]} Qc8 {[%emt 0:00:26]} 11. e4 {[%emt 0:00:07]} dxc4 {[%emt 0:00:15]} 12. Nxc4 {[%emt 0:00:01]} Rd8 {[%emt 0:00:09]} (12... b5 $14 13. Ne3 b4) 13. Bf4 $16 {[%emt 0:00:09]} Bxc4 {[%emt 0:00:03]} 14. Qxc4 {[%emt 0:00:01]} b5 {[%emt 0:00:02]} 15. Qe2 {[%emt 0:00:12] White is more active.} Nb6 {[%emt 0:00:06]} (15... b4 $142) 16. Rac1 {[%emt 0:00:04][%cal Oc3b5]} Qa6 {[%emt 0:00:06] [#]} (16... b4 $16) 17. b3 $2 {[%emt 0:00:16]} (17. d5 $1 $18) 17... Rac8 {[%emt 0:00:08] [#]} (17... Qa5 $16 {is a better defense.}) 18. a4 $1 $18 {[%emt 0:00:21][%mdl 512]} Qa5 {[%emt 0:00:41]} (18... Ba3 19. Ra1) 19. axb5 {[%emt 0:00:06]} cxb5 {[%emt 0:00:05]} 20. Qxb5 {[%emt 0:00:17]} Bb4 {[%emt 0:00:05]} 21. Qxa5 {[%emt 0:00:01]} Bxa5 {[%emt 0:00:02]} 22. Nb5 {[%emt 0:00:08][%cal Bc3b5,Bb5a7,Ba7c6][%mdl 32]} a6 $2 {[%emt 0:00:09]} (22... Rxc1 {is tougher.} 23. Rxc1 Nc8) 23. Na7 {[%emt 0:00:03]} Rxc1 {[%emt 0:00:03]} 24. Rxc1 {[%emt 0:00:01]} e5 {[%emt 0:00:29]} 25. Nc6 {[%emt 0:00:09]} exf4 {[%emt 0:00:11]} 26. Nxd8 {[%emt 0:00:02]} Bb4 {[%emt 0:00:04]} 27. gxf4 {[%emt 0:00:11]} Kf8 {[%emt 0:00:03]} 28. Nc6 {[%emt 0:00:09]} Bd2 {[%emt 0:00:03]} 29. Ra1 {[%emt 0:00:05]} Bxf4 {[%emt 0:00:05]} 30. Rxa6 {[%emt 0:01:04]} 1-0

[Event "European Women Blitz-ch 2024"]
[Site "Monaco"]
[Date "2025.01.10"]
[Round "4.7"]
[White "Atalik, Ekaterina"]
[Black "Arabidze, Meri"]
[Result "0-1"]
[Annotator "TA"]
[ECO "D25"]
[WhiteElo "2395"]
[BlackElo "2457"]
[PlyCount "90"]
[EventDate "2025.01.06"]
[EventType "swiss"]
[EventCountry "MNC"]
[SourceTitle "playchess.com"]
[Source "ChessBase"]
[SourceQuality "1"]
[TimeControl "180+2"]

{[%evp 9,90,25,46,5,5,3,14,0,12,0,21,13,5,-8,-5,-12,-6,0,4,-31,-32,-25,-6,-266,-253,-374,-369,-369,-354,-362,-361,-373,-384,-455,-421,-366,-253,-253,-267,-265,-239,-256,-250,-262,-270,-260,-279,-383,-386,-403,-387,-395,-389,-392,-386,-472,-387,-440,-433,-515,-479,-458,-450,-410,-372,-445,-443,-451,-451,-449,-440,-516,-508,-556,-554,-569,-561,-745,-745,-741,-723,-717,-690]} 1. d4 {[%emt 0:00:01]} d5 {[%emt 0:00:00]} 2. c4 {[%emt 0:00:01]} dxc4 {[%emt 0:00:01]} 3. Nf3 {[%emt 0:00:03]} Nf6 {[%emt 0:00:01]} 4. e3 {[%emt 0:00:01]} Be6 {[%emt 0:00:01]} 5. Qc2 {[%emt 0:00:08]} a6 {[%emt 0:00:06]} 6. Bxc4 {[%emt 0:00:04]} Bxc4 {[%emt 0:00:00]} 7. Qxc4 {[%emt 0:00:02]} e6 {[%emt 0:00:00][%cal Oc7c5]} 8. O-O {[%emt 0:00:02]} Nbd7 {[%emt 0:00:06]} 9. Nc3 {[%emt 0:00:03]} c5 {[%emt 0:00:09]} 10. dxc5 {[%emt 0:00:07]} Bxc5 {[%emt 0:00:10]} 11. b4 {[%emt 0:00:04]} b5 {[%emt 0:00:12]} 12. Qb3 {[%emt 0:00:02]} Be7 {[%emt 0:00:01]} 13. a4 {[%emt 0:00:07]} bxa4 {[%emt 0:00:07]} 14. Rxa4 {[%emt 0:00:05]} O-O {[%emt 0:00:05]} 15. Nd4 {[%emt 0:00:13]} Qb6 {[%emt 0:00:09] Inhibits Nc6.} 16. b5 $2 {[%emt 0:00:11][%mdl 8192]} (16. Ba3 $11) 16... Nc5 $1 $19 {[%emt 0:00:24][%csl LRa4,LRb3]} 17. Qa2 {[%emt 0:00:02]} (17. Qc4 {was worth a try.} Nxa4 18. Nxa4) 17... Nxa4 {[%emt 0:00:02]} 18. Qxa4 {[%emt 0:00:07]} axb5 {[%emt 0:00:04]} 19. Qxb5 {[%emt 0:00:02]} Qxb5 {[%emt 0:00:01]} 20. Ncxb5 {[%emt 0:00:04]} Rfc8 {[%emt 0:00:19]} 21. f3 {[%emt 0:00:16]} Ra1 {[%emt 0:00:10]} 22. Bd2 {[%emt 0:00:03]} Rxf1+ {[%emt 0:00:05]} 23. Kxf1 {[%emt 0:00:01]} h6 {[%emt 0:00:01]} 24. Ke2 {[%emt 0:00:02]} Kf8 {[%emt 0:00:12]} 25. Na7 {[%emt 0:00:02]} Ra8 {[%emt 0:00:04]} 26. Nac6 {[%emt 0:00:02]} Bc5 {[%emt 0:00:04]} 27. Nb3 {[%emt 0:02:01]} Bd6 {[%emt 0:00:02]} 28. e4 {[%emt 0:00:00]} Bxh2 {[%emt 0:00:25]} 29. Bc3 {[%emt 0:00:00]} Bc7 {[%emt 0:00:13]} 30. g4 {[%emt 0:00:00]} Ke8 {[%emt 0:00:03]} 31. Kd3 {[%emt 0:00:00]} Bf4 {[%emt 0:00:15]} 32. Bd4 {[%emt 0:00:00]} Rc8 {[%emt 0:00:06]} 33. Na7 {[%emt 0:00:00]} Rb8 {[%emt 0:00:00]} 34. Nc5 {[%emt 0:00:00]} e5 {[%emt 0:00:07]} 35. Bc3 {[%emt 0:00:00]} Rd8+ {[%emt 0:00:03]} 36. Ke2 {[%emt 0:00:00]} Nd7 {[%emt 0:00:07]} 37. Nb7 {[%emt 0:00:00]} Ra8 {[%emt 0:00:01]} 38. Nb5 {[%emt 0:00:00] Strongly threatening Nc7+.} Ra2+ {[%emt 0:00:01]} 39. Kf1 {[%emt 0:00:00]} f6 {[%emt 0:00:04]} 40. N7d6+ {[%emt 0:00:03]} Kf8 {[%emt 0:00:01]} 41. Nf5 {[%emt 0:00:03]} Kg8 {[%emt 0:00:04]} 42. Nbd6 {[%emt 0:00:04]} Nc5 {[%emt 0:00:02]} 43. Ne8 {[%emt 0:00:06]} g6 {[%emt 0:00:09]} 44. Nfd6 {[%emt 0:00:09]} Bg5 {[%emt 0:00:05]} 45. Nc7 {[%emt 0:00:08]} Nd3 {[%emt 0:00:01]} 0-1

[Event "European Women Blitz-ch 2024"]
[Site "Monaco"]
[Date "2025.01.10"]
[Round "4.8"]
[White "Wagner, Dinara"]
[Black "Toncheva, Nadya"]
[Result "1-0"]
[Annotator "TA"]
[ECO "D12"]
[WhiteElo "2437"]
[BlackElo "2313"]
[PlyCount "75"]
[EventDate "2025.01.06"]
[EventType "swiss"]
[EventCountry "MNC"]
[SourceTitle "playchess.com"]
[Source "ChessBase"]
[SourceQuality "1"]
[TimeControl "180+2"]

{[%evp 12,75,23,18,25,0,15,17,25,20,11,27,20,0,33,25,37,22,29,-1,12,8,77,65,42,0,96,44,46,33,30,20,24,35,132,126,303,61,347,364,365,338,350,346,333,320,437,487,545,540,492,295,504,293,362,332,636,654,654,654,820,814,953,644,2125,1970]} 1. d4 {[%emt 0:00:01]} d5 {[%emt 0:00:01]} 2. c4 {[%emt 0:00:01]} c6 {[%emt 0:00:01]} 3. Nf3 {[%emt 0:00:01]} Nf6 {[%emt 0:00:01]} 4. e3 {[%emt 0:00:00]} Bf5 {[%emt 0:00:01]} 5. Nc3 {[%emt 0:00:48]} e6 {[%emt 0:00:02]} 6. Nh4 {[%emt 0:00:00]} Be4 {[%emt 0:00:01]} 7. f3 {[%emt 0:00:01]} Bg6 {[%emt 0:00:01]} 8. Bd2 {[%emt 0:00:01]} Be7 {[%emt 0:00:02]} 9. Qb3 {[%emt 0:00:03]} Qc7 {[%emt 0:00:01]} 10. Nxg6 {[%emt 0:00:02]} hxg6 {[%emt 0:03:11]} 11. cxd5 {[%emt 0:00:05]} Nxd5 {[%emt 0:00:00]} 12. O-O-O {[%emt 0:00:12]} Nd7 {[%emt 0:00:00]} 13. Kb1 {[%emt 0:00:01]} Nxc3+ {[%emt 0:00:00]} 14. Bxc3 {[%emt 0:00:04]} a5 {[%emt 0:00:00][%cal Oa5a4]} 15. a4 {[%emt 0:00:25]} Nf6 {[%emt 0:00:00]} 16. e4 {[%emt 0:00:01]} Rd8 {[%emt 0:00:00]} (16... O-O $1 $11) 17. Be2 {[%emt 0:00:02]} O-O {[%emt 0:00:00][%cal Oe7b4]} 18. h4 {[%emt 0:00:01]} c5 {[%emt 0:00:00]} (18... Nh5 $11 {remains equal.}) 19. dxc5 {[%emt 0:00:22] White is more active.} ({White should try} 19. g4 $16) 19... Bxc5 $14 {[%emt 0:00:00]} 20. g4 {[%emt 0:00:01]} b6 {[%emt 0:00:00]} 21. h5 {[%emt 0:00:01]} Rxd1+ {[%emt 0:00:00]} 22. Qxd1 {[%emt 0:00:03]} Rd8 {[%emt 0:00:00] [#]} (22... gxh5 $1 $14 23. gxh5 Rd8) 23. Qc1 $1 $16 {[%emt 0:00:04] Strongly threatening hxg6.} Bb4 $2 {[%emt 0:00:00]} (23... gxh5 $2 24. Bxf6 gxf6 25. Rxh5 $18) (23... Nh7 $16 {was called for.}) 24. hxg6 $2 {[%emt 0:00:06]} (24. Bxb4 $18 Qxc1+ 25. Rxc1 axb4 26. hxg6 fxg6 27. Bc4) 24... fxg6 $2 {[%emt 0:00:00][%mdl 8192]} (24... Bxc3 $14 25. gxf7+ (25. bxc3 fxg6 26. Rd1 Rxd1 $11) (25. Qxc3 Qxc3 26. bxc3 fxg6 $11) 25... Kxf7 26. bxc3 (26. Qxc3 Qxc3 27. bxc3 Nd7 $11) 26... Nd7) 25. Bxb4 $18 {[%emt 0:00:19] This pair of bishops is nice.} Qxc1+ {[%emt 0:00:01]} 26. Rxc1 {[%emt 0:00:01]} axb4 {[%emt 0:00:02][%cal Ba5b4,Bb4b3][%mdl 4128] Endgame KRB-KRN} 27. Rc6 {[%emt 0:00:00][%csl LRb6,LRe6]} b3 {[%emt 0:00:15]} 28. Kc1 {[%emt 0:00:16] Inhibits Rd2.} ({Don't play} 28. Rxb6 Rd2 29. Rxb3 (29. Rb8+ Kh7 $16) 29... Rxe2 $18) 28... Rd4 {[%emt 0:00:05]} 29. Bb5 {[%emt 0:00:15]} ({Not} 29. Rxb6 Rxa4 30. Rxb3 Nd7 $18) (29. Bc4 Kf8 30. Bb5 (30. Bxb3 Nd7 $18) (30. Bxe6 Rxa4 31. Rxb6 Ra7 $18) 30... Nh7 $16) 29... Nd7 {[%emt 0:00:04]} 30. Rc8+ {[%emt 0:00:24]} Nf8 {[%emt 0:00:06]} 31. Rc3 {[%emt 0:00:03]} (31. Rb8 $142) 31... e5 $2 {[%emt 0:00:05]} (31... Nh7 32. Rxb3 Ng5) 32. Rxb3 {[%emt 0:00:05]} Ne6 {[%emt 0:00:00]} 33. Rc3 {[%emt 0:00:01]} Nc5 $2 {[%emt 0:00:02] [#]} (33... Kh7 34. Bc4 Ng5) 34. a5 $1 {[%emt 0:00:02][%cal Ba4a5,Ba5a6][%mdl 544]} Rb4 {[%emt 0:00:05]} 35. Be2 {[%emt 0:00:07]} Kf8 {[%emt 0:00:02]} 36. a6 {[%emt 0:00:00]} Ra4 {[%emt 0:00:02]} 37. b3 {[%emt 0:00:06][%cal Bb2b3,Bb3b4][%mdl 32]} Ra5 {[%emt 0:00:01]} 38. b4 {[%emt 0:00:01][%csl LRa5,LRc5]} 1-0

[Event "European Women Blitz-ch 2024"]
[Site "Monaco"]
[Date "2025.01.10"]
[Round "4.10"]
[White "Javakhishvili, Lela"]
[Black "Berend, Elvira"]
[Result "1-0"]
[Annotator "TA"]
[ECO "A06"]
[WhiteElo "2426"]
[BlackElo "2237"]
[PlyCount "142"]
[EventDate "2025.01.06"]
[EventType "swiss"]
[EventCountry "MNC"]
[SourceTitle "playchess.com"]
[Source "ChessBase"]
[SourceQuality "1"]
[TimeControl "180+2"]

{[%evp 24,142,0,0,0,0,0,0,-18,-17,0,-192,16,17,60,58,79,83,72,31,33,-64,-77,-66,-60,-187,-233,-231,-229,-225,-225,-223,-230,-229,-211,-259,-173,-184,-175,-207,-206,-207,-200,-200,-199,-257,-202,-202,-202,-202,-183,-202,-202,-202,-202,-258,-208,-187,-179,-242,-80,-468,-452,-439,-266,-588,-588,-517,-559,-559,-557,-563,-413,-344,-299,-465,-439,-390,-427,-379,-333,-338,-260,-260,-257,-257,-167,-269,-269,-346,-133,-167,-286,-338,-145,-410,0,-1096,0,0,8,8,59,59,353,37,170,22,22,0,150,0,8,7,29970,29972,29970,29972,29968,29953,1390]} 1. Nf3 {[%emt 0:00:01]} d5 {[%emt 0:00:02]} 2. b3 {[%emt 0:00:02]} Nf6 {[%emt 0:00:02]} 3. Bb2 {[%emt 0:00:02]} c5 {[%emt 0:00:03]} 4. e3 {[%emt 0:00:02]} e6 {[%emt 0:00:04]} 5. a3 {[%emt 0:00:05]} a6 {[%emt 0:00:08]} 6. d4 {[%emt 0:00:02]} Nc6 {[%emt 0:00:02]} 7. Bd3 {[%emt 0:00:02]} Be7 {[%emt 0:00:08]} 8. dxc5 {[%emt 0:00:03]} Bxc5 {[%emt 0:00:01]} 9. O-O {[%emt 0:00:02]} Be7 {[%emt 0:00:05]} 10. Nbd2 {[%emt 0:00:06]} O-O {[%emt 0:00:03]} 11. c4 {[%emt 0:00:02]} dxc4 {[%emt 0:00:03]} 12. Nxc4 {[%emt 0:00:02]} b5 {[%emt 0:00:02]} 13. Nce5 {[%emt 0:00:05]} Bb7 {[%emt 0:00:03]} 14. Qe2 {[%emt 0:00:06]} Nxe5 {[%emt 0:00:10]} 15. Bxe5 {[%emt 0:00:03]} Bxf3 {[%emt 0:00:24]} 16. gxf3 {[%emt 0:00:02]} Nd7 {[%emt 0:00:01]} 17. Rfd1 $2 {[%emt 0:00:14]} (17. Bg3 $11) 17... Qe8 $2 {[%emt 0:00:11]} (17... Nxe5 $19 18. Bxh7+ Kxh7 19. Rxd8 Rfxd8 (19... Raxd8 $2 20. f4 $19)) 18. Bg3 {[%emt 0:00:10]} Bf6 {[%emt 0:00:19]} 19. Rac1 {[%emt 0:00:03]} Ne5 {[%emt 0:00:14]} 20. Be4 {[%emt 0:00:05]} Rc8 {[%emt 0:00:02]} 21. f4 {[%emt 0:00:12]} Ng6 {[%emt 0:00:10]} 22. Bb7 {[%emt 0:00:02]} (22. f5 $14 exf5 23. Bxf5 Rxc1 24. Rxc1) 22... Rxc1 $15 {[%emt 0:00:03]} 23. Rxc1 {[%emt 0:00:01]} Qe7 {[%emt 0:00:04]} 24. Bxa6 {[%emt 0:00:08]} (24. Be4 $15) 24... Qxa3 $19 {[%emt 0:00:01]} 25. Rc6 {[%emt 0:00:20]} Ne7 $1 {[%emt 0:00:05]} 26. Rb6 {[%emt 0:00:12]} Nd5 {[%emt 0:00:02]} (26... Qxb3 27. Qxb5 Qxb5 28. Bxb5 $11) 27. Qxb5 {[%emt 0:00:16]} Nxb6 {[%emt 0:00:11]} 28. Qxb6 {[%emt 0:00:01]} Ra8 {[%emt 0:00:28]} 29. Bc4 {[%emt 0:00:03]} Qa7 {[%emt 0:00:11]} 30. Qc6 {[%emt 0:00:06]} Rd8 {[%emt 0:00:06]} 31. Qf3 {[%emt 0:00:21]} g6 {[%emt 0:00:03]} 32. h4 {[%emt 0:00:05]} Qa1+ {[%emt 0:00:04]} 33. Kh2 {[%emt 0:00:02]} Qa8 {[%emt 0:00:04]} 34. Qg4 {[%emt 0:00:17]} (34. Kg2 $142) 34... h5 {[%emt 0:00:06]} 35. Qe2 {[%emt 0:00:01]} Qa1 {[%emt 0:00:10]} 36. Qf3 {[%emt 0:00:06]} Qd1 {[%emt 0:00:03]} 37. Qg2 {[%emt 0:00:04]} Qc2 {[%emt 0:00:06]} 38. Qf3 {[%emt 0:00:05]} Kg7 {[%emt 0:00:03]} 39. f5 {[%emt 0:00:10]} exf5 {[%emt 0:00:03]} 40. Qb7 {[%emt 0:00:01]} Rf8 {[%emt 0:00:08]} 41. Bd5 {[%emt 0:00:04]} (41. Kg2) 41... Qc8 $2 {[%emt 0:00:02]} (41... Qb2 $19 42. Qc7 Qc3) 42. Qa7 $2 {[%emt 0:00:04][%mdl 8192]} (42. Bd6 $17 {nothing else works.}) 42... Qd8 $19 {[%emt 0:00:01]} 43. Qb7 {[%emt 0:00:03]} Qe8 {[%emt 0:00:02]} 44. Bd6 $2 {[%emt 0:00:03]} (44. Kg2 {is more resistant.} Be5 45. f4) 44... Be5+ $19 {[%emt 0:00:00]} 45. Bxe5+ {[%emt 0:00:02]} Qxe5+ {[%emt 0:00:01]} 46. Kg2 {[%emt 0:00:01]} f4 {[%emt 0:00:01]} 47. e4 {[%emt 0:00:02]} Qf6 {[%emt 0:00:02]} 48. Kh3 {[%emt 0:00:05]} f3 {[%emt 0:00:01]} 49. Kg3 {[%emt 0:00:02]} (49. Qc7 {was forced.}) 49... g5 $19 {[%emt 0:00:02]} 50. hxg5 {[%emt 0:00:02]} Qxg5+ {[%emt 0:00:01]} 51. Kxf3 {[%emt 0:00:01]} Qf6+ {[%emt 0:00:04]} 52. Ke2 {[%emt 0:00:03]} Qb2+ {[%emt 0:00:01]} 53. Kf3 {[%emt 0:00:01]} Qc3+ {[%emt 0:00:00]} 54. Kg2 {[%emt 0:00:03]} Qe5 {[%emt 0:00:04]} 55. b4 {[%emt 0:00:02]} (55. Qd7) 55... Qg5+ $19 {[%emt 0:00:00]} 56. Kf3 {[%emt 0:00:04]} Qg4+ {[%emt 0:00:02]} 57. Ke3 {[%emt 0:00:00]} h4 {[%emt 0:00:02]} 58. Qc7 {[%emt 0:00:02]} Qg5+ {[%emt 0:00:01]} (58... Qh5 $19 {is more deadly. And now ...h3 would win.} 59. b5 h3 60. Qg3+ Kh7) 59. Ke2 $2 {[%emt 0:00:03][%mdl 8192]} (59. Kf3 $17 {was called for.}) 59... h3 $2 {[%emt 0:00:01]} (59... Qh5+ $19 60. Ke3 h3) 60. b5 $2 {[%emt 0:00:04][%mdl 8192] [#]} (60. Qc3+ $11 Qf6 61. Qg3+ (61. Qxh3 Qf4 $15) 61... Qg6 62. Qxh3) 60... h2 $2 {[%emt 0:00:01]} (60... Qh5+ $1 $19 {[%mdl 512]} 61. Kd2 h2) 61. Qxh2 $11 {[%emt 0:00:03]} Qg4+ {[%emt 0:00:01]} 62. Ke3 {[%emt 0:00:03]} Rc8 {[%emt 0:00:03]} (62... Qg5+ $11 63. Kd3 Qc1) 63. Qe5+ $14 {[%emt 0:00:05]} Kg8 $2 {[%emt 0:00:02][%mdl 8192]} ({Black should try} 63... Kg6 $1 $14) 64. Bc6 $2 {[%emt 0:00:02]} ({White should try} 64. b6 $18) 64... Qh3+ {[%emt 0:00:04] [#]} (64... Qg1 $14) 65. Ke2 {[%emt 0:00:02]} (65. Kd4 $1 $18) 65... Qg4+ $11 {[%emt 0:00:01]} 66. Ke3 {[%emt 0:00:02]} (66. Kd2 $11) 66... Qh3+ $16 {[%emt 0:00:01] [#]} 67. f3 {[%emt 0:00:04]} (67. Kd4 $1 $16) 67... Qh6+ {[%emt 0:00:02]} 68. Qf4 {[%emt 0:00:02]} Qh1 $2 {[%emt 0:00:09][%mdl 8192]} (68... Qg6 $11) 69. Qg4+ {[%emt 0:00:02]} Kh7 {[%emt 0:00:00]} 70. Qxc8 {[%emt 0:00:01]} Qe1+ {[%emt 0:00:01]} 71. Kd4 {[%emt 0:00:02]} Qb4+ {[%emt 0:00:02]} 1-0

[Event "European Women Blitz-ch 2024"]
[Site "Monaco"]
[Date "2025.01.10"]
[Round "4.11"]
[White "Cramling Bellon, Anna"]
[Black "Gvetadze, Sofio"]
[Result "1-0"]
[Annotator "TA"]
[ECO "A68"]
[WhiteElo "2052"]
[BlackElo "2298"]
[PlyCount "85"]
[EventDate "2025.01.06"]
[EventType "swiss"]
[EventCountry "MNC"]
[SourceTitle "playchess.com"]
[Source "ChessBase"]
[SourceQuality "1"]
[TimeControl "180+2"]

{[%evp 18,84,64,42,57,12,40,43,27,0,63,29,152,62,43,42,61,59,176,170,168,65,429,419,389,367,346,158,172,161,736,564,559,560,838,733,908,-464,-458,-581,-576,-568,-567,-818,-801,-784,-601,-7408,-7235,-2321,-1103,-1090,-1045,-1257,-947,-1314,-786,-747,-641,-5297,-1086,-29987,-29988,-29992,-29987,-29987,29998,29999,29999]} 1. d4 {[%emt 0:00:02]} Nf6 {[%emt 0:00:01]} 2. c4 {[%emt 0:00:01]} c5 {[%emt 0:00:01]} 3. d5 {[%emt 0:00:01]} g6 {[%emt 0:00:01]} 4. Nc3 {[%emt 0:00:02]} Bg7 {[%emt 0:00:01]} 5. e4 {[%emt 0:00:01]} d6 {[%emt 0:00:01]} 6. f4 {[%emt 0:00:12]} O-O {[%emt 0:00:08]} 7. Nf3 {[%emt 0:00:01]} e6 {[%emt 0:00:05]} 8. Bd3 {[%emt 0:00:24]} exd5 {[%emt 0:00:02]} 9. cxd5 {[%emt 0:00:04]} a6 {[%emt 0:00:03]} 10. a4 {[%emt 0:00:02]} Qc7 {[%emt 0:00:06]} 11. Qe2 {[%emt 0:00:27]} Nbd7 {[%emt 0:00:10]} 12. O-O {[%emt 0:00:03]} Re8 {[%emt 0:00:01][%cal Of6e4]} 13. Bd2 {[%emt 0:00:19]} Rb8 {[%emt 0:00:27]} (13... Nxe4 $11 14. Nxe4 f5) 14. Rae1 {[%emt 0:00:13] White is more active.} Qb6 {[%emt 0:00:11] [#]} (14... b5 $1 $11 {keeps the balance.}) 15. a5 $1 {[%emt 0:01:11][%mdl 512]} Qxa5 $14 {[%emt 0:00:20]} 16. e5 {[%emt 0:00:02]} dxe5 {[%emt 0:00:36]} 17. fxe5 {[%emt 0:00:01]} Ng4 {[%emt 0:00:03] [#]} ({Black should play} 17... c4 $1 $14) 18. e6 $1 $36 {[%emt 0:00:21][%mdl 2048] White is in control.} fxe6 {[%emt 0:00:33]} 19. dxe6 {[%emt 0:00:01]} ({White should play} 19. h3 $18) 19... Ndf6 $2 {[%emt 0:00:07][%mdl 8192]} (19... c4 $1 $14 20. Bxc4 (20. exd7 Rxe2 21. Bxc4+ Kh8 $11) 20... Qc5+ 21. Kh1 Nde5) 20. e7 {[%emt 0:00:08] Hoping for Ng5.} b5 {[%emt 0:00:32] [#]} 21. Nxb5 $1 {[%emt 0:00:01][%mdl 512]} Qb6 {[%emt 0:00:03]} 22. Bc4+ {[%emt 0:00:01]} (22. Ba5 $18 {and the rest is easy.} Qxa5 23. Nd6) 22... Kh8 $16 {[%emt 0:00:01]} 23. Ng5 {[%emt 0:00:03]} h6 $2 {[%emt 0:00:04]} (23... axb5 $2 24. Nf7+ Kg8 25. Nd6+ (25. Nh6+ Kh8 $18) 25... Kh8 (25... bxc4 $2 26. Qxc4+ $18) 26. Nxe8 $18) (23... Nh6) 24. Nf7+ {[%emt 0:00:01]} Kh7 {[%emt 0:00:00]} 25. Nbd6 {[%emt 0:00:06]} Bd7 {[%emt 0:00:04]} 26. Nxe8 {[%emt 0:00:01]} (26. Bxa6 c4+ 27. Kh1 Qxa6 $14) 26... Bxe8 {[%emt 0:00:01] [#]} 27. Nd6 $4 {[%emt 0:00:01][%mdl 8192]} Qxd6 $19 {[%emt 0:00:02][%csl Gg4][%cal Rd6h2]} 28. Bf4 {[%emt 0:00:02]} Qd4+ {[%emt 0:00:02]} 29. Kh1 {[%emt 0:00:01]} Rxb2 {[%emt 0:00:01]} 30. Qf3 {[%emt 0:00:05]} Qxc4 {[%emt 0:00:01]} 31. h3 {[%emt 0:00:02] [#]} h5 $1 {[%emt 0:00:07]} 32. Be5 {[%emt 0:00:03]} (32. hxg4 Nxg4) 32... Nxe5 {[%emt 0:00:02]} 33. Rxe5 {[%emt 0:00:01]} Rc2 {[%emt 0:00:01][%cal Oe8c6] and ...Bc6! would now be decisive} 34. Ree1 {[%emt 0:00:03]} Rd2 {[%emt 0:00:01]} 35. Qg3 {[%emt 0:00:01]} Qf7 {[%emt 0:00:02]} 36. Qc7 {[%emt 0:00:02]} Rd7 {[%emt 0:00:00]} 37. Qxc5 {[%emt 0:00:01]} Qg8 {[%emt 0:00:02]} 38. g4 {[%emt 0:00:01]} h4 {[%emt 0:00:02] ( -> ...Rd3)} 39. g5 {[%emt 0:00:01]} Nh5 {[%emt 0:00:01]} 40. Qb4 {[%emt 0:00:02]} Ng3+ {[%emt 0:00:01]} 41. Kg1 {[%emt 0:00:02]} Nxf1 $4 {[%emt 0:00:01][%mdl 8192]} (41... Rd4 {and life is good for Black.} 42. Rf4 Rxb4 43. Rxb4 Nf5 44. Re3 Qd5 (44... Nxe3 $2 45. Rxh4+ $19) 45. Re2 Qc5+ 46. Kh1 Qxb4 47. Kg1 Bd4+ (47... Nxe7 {is a self mate.} 48. Kg2 Bc6+ 49. Kf1 Qc4 50. Kf2 Qf4+ 51. Ke1 Bc3+ 52. Kd1 Ba4+ 53. Rc2 Qf1#) 48. Kh2 Qb8+ (48... Nxe7 49. Rg2 Qb8+ 50. Kh1 Qb1+ 51. Kh2 Bc6 52. Rg4 Qh1#) 49. Kh1 Bc6+ (49... Ng3+ 50. Kh2 Nxe2+ 51. Kg2 Qg3+ 52. Kh1 Qxh3#) 50. Rg2 Qg3 51. e8=B Bxg2#) 42. Qxh4+ {[%emt 0:00:01]} Bh6 {[%emt 0:00:04]} 43. Qxh6# {[%emt 0:00:03]} 1-0